bitfinex-derivatives/quotes_ETHF0:USTF0_20251117
["timestamp","ask_amount","ask_price","bid_price","bid_amount"]
[1763353967807,5.40656984,3187.9,3187.5,0.1522]
[1763353968007,0.5086,3187.8,3187.5,0.1522]
[1763353968499,4.89798984,3187.9,3187.5,0.1522]
[1763353969099,1.69018984,3187.8,3187.5,0.1522]
[1763353969302,2.19878984,3187.8,3187.5,0.1522]
[1763353970203,1.69018984,3187.8,3187.5,0.1522]
[1763353974114,0.50861,3187.7,3187.5,0.1522]
[1763353974314,2.99988433,3187.8,3187.5,0.1522]
[1763353974624,3.50847433,3187.8,3187.5,0.1522]
[1763353974805,0.50861,3187.7,3187.5,0.1522]
[1763353976213,2.19877984,3187.8,3187.5,0.1522]
[1763353976809,2.84688072,3187.6,3187.0,0.13810675]
[1763353977008,1.15669088,3187.2,3187.0,0.13810675]
[1763353977817,1.69018984,3187.7,3187.5,0.147]
[1763353978112,3.35551072,3187.6,3187.0,3.34590675]
[1763353978313,1.69018984,3187.6,3187.5,0.147]
[1763353980113,1.69018984,3187.7,3187.5,0.4027]
[1763353980614,3.2078,3187.8,3187.7,0.2557]
[1763353981008,3.2078,3188.2,3188.0,0.147]
[1763353982218,4.89798984,3188.2,3188.0,0.147]
[1763353982423,3.2078,3188.2,3188.0,0.147]
[1763353983716,4.89798984,3188.2,3188.0,0.147]
[1763353983917,3.2078,3188.2,3188.0,0.147]
[1763353984620,5.40651984,3188.2,3188.0,0.147]
[1763353984821,0.50861,3187.7,3187.5,0.147]
[1763353985028,1.15669088,3187.8,3187.5,0.147]
[1763353985726,0.50863,3187.6,3187.0,3.34590675]
[1763353985909,1.15669088,3187.5,3187.0,3.34590675]
[1763353986317,4.89830077,3187.7,3187.5,0.147]
[1763353986720,1.69050077,3187.6,3187.5,0.147]
[1763353988728,6.56360165,3187.7,3187.5,0.147]
[1763353989032,6.05499165,3187.7,3187.5,0.147]
[1763353989222,1.69050077,3187.6,3187.5,0.147]
[1763353989421,4.89830077,3187.7,3187.6,0.2557]
[1763353989621,4.89830077,3187.7,3187.5,0.147]
[1763353990025,6.56360165,3187.7,3187.5,0.147]
[1763353990526,4.89830077,3187.7,3187.5,0.147]
[1763353991116,4.89830077,3187.7,3187.6,0.2557]
[1763353991431,3.2078,3187.7,3187.6,0.2557]
[1763353991830,3.2078,3187.7,3187.5,0.147]
[1763353992039,1.12761854,3187.6,3187.5,0.147]
[1763353992336,4.89830077,3187.7,3187.5,0.147]
[1763353994235,1.12818852,3187.6,3187.5,0.4027]
[1763353994437,0.50867,3187.3,3187.0,0.13810675]
[1763353994638,1.1282298,3187.2,3187.0,0.13810675]
[1763353994845,4.87316088,3187.3,3186.5,3.3433]
[1763353994846,1.1282298,3187.1,3186.5,3.3433]
[1763353995137,0.5088,3186.5,3186.0,3.3548]
[1763353995334,1.15669088,3186.3,3186.0,0.147]
[1763353995539,2.28509683,3186.3,3185.6,3.2078]
[1763353995729,1.15669088,3185.7,3185.6,3.2078]
[1763353995926,1.1589564,3185.7,3185.6,3.21034558]
[1763353996127,1.1589564,3185.7,3185.6,0.00254558]
[1763353996330,1.1589564,3185.7,3185.1,3.2078]
[1763353996533,1.66570088,3185.2,3185.0,0.147]
[1763353997431,1.15669088,3185.2,3185.0,0.14980221]
[1763353997633,1.15669088,3185.2,3185.0,0.00280221]
[1763353997837,1.66570088,3185.2,3185.0,0.00280221]
[1763353998038,1.15669088,3185.2,3185.0,0.14300221]
[1763353998834,3.2078,3185.3,3185.0,0.14300221]
[1763354000039,0.00470625,3185.4,3185.3,0.249]
[1763354001842,0.00470625,3185.4,3185.3,7.40569088]
[1763354002747,0.00226552,3185.7,3185.6,0.249]
[1763354003040,3.2078,3186.7,3186.5,0.146]
[1763354003438,0.50878,3186.6,3186.0,0.146]
[1763354003748,4.36449088,3186.3,3186.0,0.15070625]
[1763354004145,4.36730077,3186.3,3186.0,0.15070625]
[1763354004550,3.21060989,3186.3,3186.0,0.15070625]
[1763354004843,3.21060989,3186.3,3186.2,0.249]
[1763354005247,3.21060989,3186.3,3186.0,0.15070625]
[1763354006746,3.21060989,3186.3,3186.2,0.249]
[1763354006946,3.21060989,3186.3,3186.0,0.15070625]
[1763354009447,3.21060989,3186.3,3186.2,0.249]
[1763354010652,3.21060989,3186.3,3186.0,0.15070625]
[1763354015456,3.21060989,3186.3,3186.2,0.249]
[1763354016154,3.21060989,3186.3,3186.0,0.15070625]
[1763354019156,3.21060989,3186.3,3186.2,0.249]
[1763354019350,3.21060989,3186.3,3186.0,0.15070625]
[1763354022659,0.50885,3186.2,3186.0,0.00470625]
[1763354023262,1.63567057,3186.2,3186.0,0.00470625]
[1763354023766,1.12682057,3186.2,3186.0,0.00470625]
[1763354024062,1.12682057,3186.2,3186.0,0.15070625]
[1763354024459,1.63567057,3186.2,3186.0,0.00470625]
[1763354024661,2.19935077,3186.2,3186.0,6.25e-06]
[1763354024967,2.19935077,3186.2,3186.0,0.14600625]
[1763354025471,2.19935077,3186.2,3186.0,6.25e-06]
[1763354025763,1.12668108,3186.1,3186.0,6.25e-06]
[1763354026066,1.12668108,3186.1,3186.0,0.14600625]
[1763354026366,2.19935077,3186.2,3186.0,0.14600625]
[1763354026864,2.19935077,3186.2,3186.0,6.25e-06]
[1763354027066,1.69050077,3186.1,3186.0,6.25e-06]
[1763354028362,1.69050077,3186.1,3186.0,0.14600625]
[1763354029171,4.87613077,3186.3,3186.0,0.14600625]
[1763354029366,1.69284912,3186.1,3186.0,0.14600625]
[1763354030653,0.50885,3186.2,3186.0,6.25e-06]
[1763354031057,1.15669088,3186.1,3186.0,6.25e-06]
[1763354031455,3.40709185,3186.1,3186.0,6.25e-06]
[1763354031662,3.40709185,3186.1,3185.5,0.146]
[1763354031969,0.50901,3185.2,3185.0,0.14300221]
[1763354032170,2.8508123,3185.2,3185.0,0.14300221]
[1763354032364,3.3598223,3185.2,3185.0,0.14300221]
[1763354033167,1.12782013,3185.1,3185.0,0.14300221]
[1763354033559,3.3598223,3185.2,3185.0,0.14300221]
[1763354035071,1.12668589,3185.1,3185.0,0.14300221]
[1763354035871,3.3598223,3185.2,3185.0,0.14300221]
[1763354036072,1.12623813,3185.1,3185.0,0.14300221]
[1763354036668,1.12623813,3185.2,3185.0,0.14300221]
[1763354038265,3.2078,3185.3,3185.0,0.14300221]
[1763354038266,4.33403813,3185.3,3185.0,0.14300221]
[1763354038877,4.33403813,3185.3,3185.2,0.2271]
[1763354038878,3.2078,3185.3,3185.2,0.2271]
[1763354039873,3.2078,3185.3,3185.0,0.14300221]
[1763354040572,3.2078,3185.3,3185.2,0.2271]
[1763354041176,3.2078,3185.3,3185.0,0.14300221]
[1763354041372,3.2078,3185.3,3185.2,0.2271]
[1763354042671,3.2078,3185.7,3185.6,0.2271]
[1763354043275,3.2078,3185.7,3185.5,0.1434]
[1763354043671,3.2078,3185.7,3185.6,0.2271]
[1763354045877,3.2078,3185.7,3185.5,0.1434]
[1763354046181,3.2078,3185.7,3185.6,0.2271]
[1763354051096,0.50903,3185.1,3184.4,1.11620789]
[1763354051294,0.50903,3185.1,3183.8,5.45920238]
[1763354051295,3.2078,3184.6,3184.5,0.1434]
[1763354051992,3.2078,3184.6,3184.5,0.3705]
[1763354052197,3.2078,3184.6,3184.5,0.37355382]
[1763354053597,3.2078,3184.6,3184.5,0.14645382]
[1763354061203,3.2078,3184.6,3183.8,3.2078]
[1763354061409,4.33403813,3184.6,3183.8,3.2078]
[1763354061702,4.84313813,3184.6,3184.5,0.142]
[1763354062103,0.50912,3184.5,3183.8,3.2078]
[1763354062404,3.2078,3184.2,3184.0,0.14740858]
[1763354062596,0.50916,3184.3,3184.0,0.14740858]
[1763354062801,3.2078,3184.2,3184.0,0.14740858]
[1763354065105,3.2078,3184.2,3184.0,0.00400858]
[1763354065302,3.2078,3184.2,3184.0,0.14600858]
[1763354066203,3.2078,3184.2,3184.1,0.2473]
[1763354067209,1.12623813,3184.5,3184.1,0.2473]
[1763354067509,3.2078,3184.6,3184.5,0.142]
[1763354067701,4.33403813,3184.6,3184.5,0.142]
[1763354068804,0.50912,3184.5,3184.0,0.14600858]
[1763354069499,0.50912,3184.5,3184.0,0.39330858]
[1763354071312,4.33403813,3184.6,3184.5,0.3893]
[1763354071313,3.2078,3184.6,3184.5,0.3893]
[1763354071607,3.2078,3184.6,3184.5,0.142]
[1763354071808,4.33403813,3184.6,3184.5,0.142]
[1763354073009,4.90192142,3184.6,3184.0,0.14600858]
[1763354073205,3.2078,3184.1,3184.0,0.14600858]
[1763354074221,3.2078,3184.1,3184.0,0.39330858]
[1763354075109,3.2078,3184.1,3184.0,0.14600858]
[1763354076113,3.2078,3184.1,3184.0,0.39330858]
[1763354079713,3.2078,3184.1,3184.0,0.14600858]
[1763354079914,3.2078,3184.1,3184.0,0.39330858]
[1763354080713,1.12575293,3184.3,3184.2,0.2473]
[1763354081018,1.12575293,3184.4,3184.3,0.2473]
[1763354081316,1.69412142,3184.4,3184.3,0.2473]
[1763354083017,1.69412142,3184.4,3184.0,3.35380858]
[1763354083216,1.12954271,3184.2,3184.1,0.2473]
[1763354083412,2.97560033,3184.3,3184.0,0.14600858]
[1763354083611,1.12970978,3184.1,3184.0,0.14600858]
[1763354084319,1.12970978,3184.1,3184.0,0.39330858]
[1763354085616,1.12970978,3184.1,3184.0,0.14600858]
[1763354086523,1.69412142,3184.2,3184.0,0.14600858]
[1763354089714,2.20329142,3184.2,3184.0,0.14600858]
[1763354089922,0.50929,3183.5,3182.7,3.2078]
[1763354090123,0.77232891,3183.2,3182.7,3.2078]
[1763354090320,1.13057487,3183.3,3182.7,3.98012891]
[1763354090518,3.2078,3184.2,3183.9,0.2375]
[1763354090720,3.2078,3184.2,3183.5,0.141]
[1763354090721,3.2078,3184.2,3184.1,0.2375]
[1763354090922,3.21138645,3184.2,3184.1,0.00351436]
[1763354093132,4.90724876,3184.2,3184.1,0.00351436]
[1763354093328,0.50923,3183.8,3183.5,0.141]
[1763354093623,0.50923,3183.8,3183.5,0.3785]
[1763354093926,0.50925,3183.7,3183.5,0.141]
[1763354094130,2.2041811,3183.7,3183.5,0.141]
[1763354094315,2.2041811,3183.7,3183.5,0.14493483]
[1763354095122,1.6949311,3183.6,3183.5,0.00393483]
[1763354095519,1.6949311,3183.6,3183.5,0.14493483]
[1763354096428,2.2041811,3183.7,3183.5,0.14493483]
[1763354097442,5.4119711,3183.8,3183.5,0.14493483]
[1763354097635,4.9027311,3183.8,3183.5,0.14493483]
[1763354098342,0.50925,3183.7,3183.5,0.14493483]
[1763354098741,2.2041811,3183.7,3183.5,0.14493483]
[1763354099043,2.2041811,3183.7,3183.5,0.00393483]
[1763354099743,2.2041811,3183.7,3183.5,0.14493483]
[1763354100145,0.50925,3183.7,3183.5,0.14493483]
[1763354101241,0.50925,3183.7,3183.5,0.00393483]
[1763354101443,1.69256456,3183.6,3183.5,0.00393483]
[1763354102145,1.69256456,3183.6,3183.5,0.14493483]
[1763354102345,2.20181456,3183.7,3183.5,0.14493483]
[1763354102741,0.50925,3183.7,3183.5,0.00393483]
[1763354102950,6.0,3183.6,3182.5,0.142]
[1763354103146,3.2078,3183.0,3182.5,0.3795]
[1763354103341,0.5094,3182.8,3182.5,0.3795]
[1763354103540,0.50941,3182.7,3182.5,0.142]
[1763354103841,0.50941,3182.7,3182.0,0.141]
[1763354103842,3.2078,3182.6,3182.0,3.3488]
[1763354104040,1.15922823,3182.5,3182.0,0.141]
[1763354104236,0.50946,3182.4,3182.0,0.3785]
[1763354104442,3.2078,3182.6,3182.5,0.3785]
[1763354104947,3.2078,3182.6,3182.5,0.141]
[1763354105546,3.2078,3182.6,3182.5,0.3785]
[1763354106545,0.50936,3183.0,3182.5,0.3785]
[1763354106945,0.00470625,3183.1,3183.0,0.3785]
[1763354110146,3.2078,3184.0,3183.5,0.141]
[1763354110648,3.2078,3184.0,3183.9,0.2375]
[1763354115656,0.51275645,3184.2,3184.0,0.141]
[1763354116352,0.00358645,3184.2,3184.1,0.2375]
[1763354117354,0.00358645,3184.2,3184.1,3.4453]
[1763354119160,0.00358645,3184.2,3184.1,9.4453]
[1763354120058,3.2078,3185.2,3185.1,0.2347]
[1763354120956,3.71681,3185.2,3185.0,0.1429]
[1763354121162,3.72081716,3185.2,3185.0,0.14544492]
[1763354121660,3.21180716,3185.2,3185.0,0.14544492]
[1763354122060,3.21180716,3185.2,3185.1,0.2347]
[1763354122953,3.72081716,3185.2,3185.0,0.14544492]
[1763354124562,1.15922823,3185.1,3185.0,0.00254492]
[1763354124758,1.15922823,3185.1,3184.5,0.1429]
[1763354124759,0.5091,3184.6,3184.5,0.1429]
[1763354125066,2.28361729,3185.1,3183.8,3.2078]
[1763354125067,0.50913,3184.5,3183.8,3.2078]
[1763354125467,0.50917,3184.2,3183.8,3.2078]
[1763354125667,0.50917,3184.2,3184.0,0.14382321]
[1763354125863,1.15922823,3184.4,3184.0,0.14382321]
[1763354126064,1.66836823,3184.4,3184.0,0.14382321]
[1763354126264,3.2078,3184.7,3184.0,0.14382321]
[1763354126467,3.2078,3184.7,3184.5,0.1429]
[1763354127463,3.2078,3184.7,3184.6,0.2347]
[1763354127664,0.5091,3184.6,3184.5,0.1429]
[1763354127865,0.50914,3184.4,3184.0,0.14382321]
[1763354128060,1.15922823,3184.1,3184.0,0.14382321]
[1763354129668,0.50918,3184.2,3184.0,0.14382321]
[1763354133870,1.15922823,3184.1,3184.0,0.14382321]
[1763354134167,1.15922823,3184.1,3183.8,0.00471372]
[1763354134168,10.01098303,3184.1,3183.0,0.1429]
[1763354134363,3.2078,3183.1,3182.4,3.2078]
[1763354134566,1.15922823,3183.0,3182.4,3.2078]
[1763354134767,2.28376833,3183.0,3182.4,3.2078]
[1763354135076,0.50937,3183.0,3182.5,0.1452565]
[1763354135268,3.21251372,3183.1,3183.0,0.3776]
[1763354136271,3.21251372,3183.1,3183.0,0.1429]
[1763354136470,3.21251372,3183.1,3182.5,0.1452565]
[1763354136670,3.2078,3182.7,3182.5,0.1452565]
[1763354136975,3.21061638,3182.7,3182.5,0.1452565]
[1763354137170,4.87925461,3182.7,3182.5,0.1452565]
[1763354141776,3.21061638,3182.7,3182.6,0.2347]
[1763354142887,0.00281638,3182.7,3182.6,0.2347]
[1763354145993,4.3323401,3183.9,3183.8,0.2347]
[1763354146202,1.1245401,3184.2,3184.0,0.3776]
[1763354146395,3.2078,3184.3,3184.0,0.3776]
[1763354147001,3.21020528,3184.3,3184.0,0.3776]
[1763354147905,1.66839823,3184.2,3184.0,0.1429]
[1763354148498,1.15922823,3184.2,3184.0,0.1429]
[1763354150906,1.15922823,3184.2,3183.8,0.00471372]
[1763354150907,0.5092,3184.0,3183.8,0.00471372]
[1763354151107,4.36702823,3183.9,3183.8,0.00471372]
[1763354153204,3.2078,3183.9,3183.8,0.00471372]
[1763354155306,4.3323401,3183.9,3183.8,0.00471372]
[1763354156901,5.49156833,3183.9,3183.8,0.00471372]
[1763354157106,4.36702823,3183.9,3183.0,0.1429]
[1763354157306,4.36702823,3183.3,3183.0,0.1429]
[1763354157806,1.6347285,3183.2,3183.0,0.1429]
[1763354161708,1.1253985,3183.2,3183.0,0.1429]
[1763354166317,1.6347285,3183.2,3183.0,0.1429]
[1763354167214,1.6347285,3183.2,3183.1,0.2452]
[1763354167215,1.1253985,3183.2,3183.1,0.2452]
[1763354167418,2.26114975,3183.7,3183.6,0.2452]
[1763354167419,4.3331985,3183.7,3183.6,0.2452]
[1763354167611,3.2078,3183.7,3183.6,0.2452]
[1763354167807,3.2078,3183.7,3183.5,0.1495]
[1763354168415,3.71705,3183.7,3183.5,0.1495]
[1763354168620,0.50932,3183.3,3183.0,0.1429]
[1763354168821,3.2078,3183.2,3183.0,0.1429]
[1763354169218,3.2078,3183.2,3183.1,0.2452]
[1763354171422,3.2078,3183.2,3183.0,0.1429]
[1763354173412,3.2078,3183.2,3183.1,0.2452]
[1763354173813,1.12650414,3183.4,3183.3,0.2452]
[1763354174020,4.33430414,3183.6,3183.5,0.3947]
[1763354174216,3.2078,3183.6,3183.5,0.1495]
[1763354174624,0.50928,3183.5,3183.0,0.1429]
[1763354174927,1.12754833,3183.4,3183.0,0.1429]
[1763354177323,1.12754833,3183.3,3183.0,0.1429]
[1763354177528,3.2078,3183.1,3183.0,0.1429]
[1763354177728,0.50936,3183.0,3182.0,0.1495]
[1763354177925,3.2078,3182.7,3182.6,0.2425]
[1763354178231,4.8455764,3182.7,3182.0,0.1495]
[1763354178427,1.1283564,3182.6,3182.5,0.0023565]
[1763354179238,1.1283564,3182.6,3182.5,0.1481565]
[1763354183135,4.3361564,3182.7,3182.5,0.1481565]
[1763354183336,1.1283564,3182.6,3182.5,0.1481565]
[1763354184228,4.8455664,3182.7,3182.5,0.1481565]
[1763354184425,1.1283564,3182.6,3182.5,0.1481565]
[1763354185528,4.3361564,3182.7,3182.5,0.1481565]
[1763354185737,4.3361564,3182.7,3182.6,0.2343]
[1763354185941,3.2078,3182.7,3182.6,0.2343]
[1763354186834,0.00471372,3182.9,3182.8,0.2343]
[1763354191345,1.1283564,3183.3,3183.2,0.2343]
[1763354191543,3.2078,3183.6,3183.3,0.2343]
[1763354191748,3.2078,3183.6,3183.5,0.3801]
[1763354193348,3.2078,3183.6,3183.5,0.1458]
[1763354193648,3.2078,3183.6,3183.5,0.3801]
[1763354197066,0.00471372,3183.9,3183.8,0.2343]
[1763354197655,0.00240528,3184.3,3184.2,0.2343]
[1763354198857,0.00240528,3184.3,3184.0,0.1458]
[1763354199258,0.50916,3184.2,3184.0,0.1458]
[1763354199658,0.00240528,3184.3,3184.0,0.1458]
[1763354202163,0.00240528,3184.3,3184.2,0.2343]
[1763354203460,0.00240528,3184.3,3184.0,0.1458]
[1763354205461,3.2078,3184.2,3184.1,0.2343]
[1763354207971,0.00240528,3184.3,3184.0,0.1458]
[1763354207972,0.00240528,3184.3,3184.2,0.2343]
[1763354209172,3.07359813,3184.6,3184.5,0.3769]
[1763354209572,3.07359813,3184.6,3184.0,3.3536]
[1763354209773,0.1357,3184.5,3184.0,3.3536]
[1763354210073,3.07359813,3184.6,3184.0,3.3536]
[1763354210074,3.58270813,3184.6,3184.0,3.3536]
[1763354210276,3.59128314,3184.6,3184.0,3.3536]
[1763354210672,3.08217314,3184.6,3184.0,3.3536]
[1763354211670,3.21637501,3184.6,3184.0,0.1458]
[1763354211867,3.45517501,3184.6,3184.5,0.3722]
[1763354212069,3.45517501,3184.6,3184.0,0.1458]
[1763354212269,0.1314,3184.5,3184.0,0.1458]
[1763354213267,0.2388,3184.5,3184.4,0.2296]
[1763354213667,0.1314,3184.5,3184.0,0.1458]
[1763354214976,3.21637501,3184.6,3184.0,0.1458]
[1763354215577,0.00857501,3184.6,3184.0,0.1458]
[1763354215775,3.21637501,3184.6,3184.0,0.1458]
[1763354216173,3.45517501,3184.6,3184.5,0.2296]
[1763354216568,0.1314,3184.5,3184.0,0.1458]
[1763354216769,0.2388,3184.1,3184.0,0.2296]
[1763354216973,0.1314,3184.5,3184.0,0.3722]
[1763354217177,0.2388,3184.5,3184.4,0.2296]
[1763354217475,3.21637501,3184.6,3184.5,0.3722]
[1763354217670,3.45517501,3184.6,3184.5,0.3722]
[1763354217872,3.45517501,3184.6,3184.5,0.2296]
[1763354218071,3.96427501,3184.6,3184.0,0.1426]
[1763354218272,5.09263141,3184.6,3184.0,0.1426]
[1763354219181,0.2388,3184.1,3184.0,0.3722]
[1763354219377,0.2388,3184.1,3184.0,0.2296]
[1763354220679,0.2388,3183.9,3183.8,3.4374]
[1763354220882,3.2078,3184.2,3183.8,3.4374]
[1763354225587,0.2388,3183.9,3183.8,3.4374]
[1763354225881,0.2388,3183.6,3183.5,1.478]
[1763354226086,0.2388,3183.6,3183.5,1.8502]
[1763354226489,0.2388,3183.6,3183.5,1.478]
[1763354227383,1.1283564,3183.7,3183.6,0.2296]
[1763354227580,4.5749564,3183.8,3183.7,0.2296]
[1763354228095,3.2078,3183.8,3183.7,0.2296]
[1763354228582,3.4466,3183.8,3183.7,0.2296]
[1763354228787,3.2078,3183.8,3183.7,0.2296]
[1763354229777,3.4466,3183.8,3183.7,0.2296]
[1763354231184,3.2078,3183.8,3183.7,0.2296]
[1763354232386,3.2078,3183.8,3183.7,1.00237745]
[1763354234289,1.1283564,3184.2,3184.1,0.2296]
[1763354234484,1.1283564,3184.3,3184.2,0.2296]
[1763354234793,4.5749564,3184.4,3184.3,0.2296]
[1763354235691,0.2388,3184.3,3184.2,1.00237745]
[1763354235886,4.3361564,3184.4,3184.3,0.2296]
[1763354236089,0.00857501,3184.6,3184.5,0.3722]
[1763354236393,0.24737501,3184.6,3184.2,0.77277745]
[1763354236599,0.24737501,3184.6,3184.5,0.3722]
[1763354236888,0.00857501,3184.6,3184.5,0.3722]
[1763354237285,0.25397501,3184.6,3184.5,0.3722]
[1763354237498,0.25397501,3184.6,3184.5,1.15877745]
[1763354237685,0.00857501,3184.6,3184.5,1.15877745]
[1763354238588,0.00857501,3184.6,3184.5,1.9315549]
[1763354238787,1.1283564,3185.1,3185.0,0.3834]
[1763354238987,3.2078,3185.3,3185.2,0.2374]
[1763354239194,3.4518,3185.3,3185.2,1.01017745]
[1763354239387,1.1283564,3185.5,3185.4,0.2374]
[1763354239583,4.5801564,3185.7,3185.6,0.2374]
[1763354239790,4.58267978,3185.7,3185.6,1.01303565]
[1763354239991,3.21032338,3185.7,3185.6,1.01303565]
[1763354240894,3.21032338,3185.7,3185.6,0.2402582]
[1763354241394,3.45432338,3185.7,3185.6,0.2402582]
[1763354242191,0.00252338,3185.7,3185.6,0.2402582]
[1763354243094,0.00252338,3185.7,3185.6,1.39761111]
[1763354243789,0.24652338,3185.7,3185.6,0.0028582]
[1763354246998,3.45432338,3185.7,3185.6,0.0028582]
[1763354249998,3.45432338,3185.7,3185.6,0.2402582]
[1763354251294,3.45432338,3185.7,3185.6,1.39761111]
[1763354251295,0.00252338,3185.7,3185.6,1.39761111]
[1763354251601,0.24652338,3185.7,3185.6,0.2402582]
[1763354252498,0.24652338,3185.7,3185.6,0.0028582]
[1763354253398,3.45432338,3185.7,3185.6,0.0028582]
[1763354253604,0.244,3185.4,3185.3,0.00471372]
[1763354254103,0.244,3185.4,3185.3,0.24211372]
[1763354254298,0.244,3185.4,3185.3,0.00471372]
[1763354254500,0.244,3185.4,3185.3,0.0070951]
[1763354257104,0.244,3184.6,3184.4,3.2078]
[1763354257309,0.244,3184.6,3184.0,4.50775291]
[1763354257908,0.244,3184.6,3184.5,0.3819]
[1763354258111,0.244,3184.6,3184.5,0.38484016]
[1763354259214,0.50904,3185.0,3184.6,0.2374]
[1763354259513,0.50904,3185.0,3184.9,0.2374]
[1763354259815,0.75304,3185.0,3184.9,0.2374]
[1763354260112,3.4518,3185.2,3185.1,0.2374]
[1763354261020,3.4518,3185.2,3185.1,1.0092846]
[1763354261321,0.244,3185.2,3185.1,1.0092846]
[1763354261509,3.2078,3185.6,3185.1,1.0092846]
[1763354261815,3.2078,3185.6,3185.0,0.1445]
[1763354261816,0.244,3185.4,3185.3,1.0092846]
[1763354263015,0.244,3185.2,3185.0,0.1445]
[1763354263316,0.244,3185.2,3185.1,1.0092846]
[1763354263802,3.2078,3185.6,3185.1,1.0092846]
[1763354264008,3.2078,3185.6,3185.3,0.7718846]
[1763354264411,3.4518,3185.6,3185.5,0.3819]
[1763354264714,0.244,3185.2,3185.1,1.0092846]
[1763354265307,3.2078,3185.6,3185.1,1.0092846]
[1763354265504,0.244,3185.4,3185.3,1.0092846]
[1763354266508,0.244,3185.4,3185.0,0.1445]
[1763354266509,0.244,3185.2,3185.1,1.0092846]
[1763354267918,4.8450964,3185.6,3185.1,1.0092846]
[1763354268118,0.244,3185.4,3185.3,1.0092846]
[1763354268619,0.244,3185.2,3185.1,0.2374]
[1763354268820,0.2487,3185.1,3185.0,0.3805]
[1763354269122,0.17565187,3185.1,3185.0,0.3805]
[1763354270815,1.2808646,3185.4,3185.0,0.3805]
[1763354271013,0.2487,3185.1,3185.0,0.3805]
[1763354271214,2.409201,3185.5,3185.0,0.3805]
[1763354271714,0.2487,3185.2,3185.1,1.0078846]
[1763354274227,0.2487,3185.2,3185.1,0.236]
[1763354276524,0.2487,3185.2,3185.1,1.0078846]
[1763354276823,1.6373164,3185.5,3185.1,1.0078846]
[1763354278326,0.2487,3185.2,3185.1,1.0078846]
[1763354281122,1.6373164,3185.5,3185.1,1.0078846]
[1763354281732,1.1283564,3185.5,3185.1,1.0078846]
[1763354282124,0.2487,3185.4,3185.3,0.7718846]
[1763354282525,0.2487,3185.4,3185.3,1.0078846]
[1763354283231,1.3770564,3185.4,3185.3,1.0078846]
[1763354283827,1.1283564,3185.4,3185.3,1.0078846]
[1763354284222,1.3770564,3185.5,3185.4,0.236]
[1763354284419,0.2487,3185.4,3185.3,0.7718846]
[1763354284720,0.2487,3185.2,3185.1,1.0078846]
[1763354284918,0.2487,3185.2,3185.1,0.236]
[1763354287933,0.2487,3184.7,3184.6,1.11620789]
[1763354288130,4.33742964,3185.0,3184.5,1.15533838]
[1763354288333,4.58612964,3185.0,3184.9,0.236]
[1763354289037,5.09516964,3185.0,3184.5,0.91933838]
[1763354290133,4.58612964,3185.0,3184.5,0.91933838]
[1763354290334,4.58612964,3185.0,3184.9,0.236]
[1763354290934,4.58612964,3185.0,3184.5,0.91933838]
[1763354292935,4.58612964,3185.0,3184.9,0.236]
[1763354294134,4.33742964,3185.0,3184.9,0.236]
[1763354294536,4.58612964,3185.0,3184.9,0.236]
[1763354294734,3.2078,3185.0,3184.9,0.236]
[1763354296224,0.2487,3184.7,3184.6,0.77189822]
[1763354296430,0.2487,3184.6,3184.5,0.38344016]
[1763354298130,4.84647964,3185.0,3184.5,0.38344016]
[1763354298836,0.50905,3184.9,3184.5,0.38344016]
[1763354299137,0.2414,3184.6,3184.5,0.38344016]
[1763354299537,0.2414,3184.6,3184.5,0.00294016]
[1763354299839,0.2414,3184.6,3184.5,0.39374016]
[1763354301236,0.2414,3184.6,3184.5,0.00294016]
[1763354301537,0.2369,3183.6,3183.5,0.389]
[1763354301740,3.2078,3183.8,3183.7,0.2445]
[1763354302339,0.0563,3184.1,3184.0,0.1463]
[1763354302639,0.0563,3184.1,3184.0,0.3935716]
[1763354303127,3.2641,3184.3,3184.2,0.2445]
[1763354303331,3.2078,3184.3,3184.2,1.01639822]
[1763354304639,3.2078,3184.3,3184.2,0.2445]
[1763354306037,0.00471372,3184.4,3184.3,0.2445]
[1763354306235,0.00471372,3184.4,3184.3,1.01639822]
[1763354306544,3.2078,3185.6,3185.3,0.2445]
[1763354306733,3.2688,3185.6,3185.5,0.1463]
[1763354308542,3.2688,3185.6,3185.5,0.3908]
[1763354309242,3.2078,3185.6,3185.5,1.16269822]
[1763354309544,3.2078,3185.6,3185.5,0.1463]
[1763354309545,3.2688,3185.6,3185.5,0.1463]
[1763354309744,0.061,3185.3,3185.2,0.77189822]
[1763354309945,0.061,3185.3,3185.2,1.01639822]
[1763354310444,3.2688,3185.6,3185.5,0.3908]
[1763354310642,3.2688,3185.6,3185.5,0.1463]
[1763354313347,3.2688,3185.6,3185.5,0.3908]
[1763354313847,3.2688,3185.6,3185.5,0.1463]
[1763354314642,3.2688,3185.6,3184.6,1.12286536]
[1763354314643,0.061,3185.1,3184.6,3.2078]
[1763354314849,0.061,3184.7,3184.6,3.4523]
[1763354315546,3.2078,3185.1,3185.0,0.3908]
[1763354315752,3.2078,3185.1,3185.0,1.16269822]
[1763354316355,3.2688,3185.1,3185.0,1.16269822]
[1763354316552,0.061,3185.1,3185.0,1.16269822]
[1763354320146,0.50898,3185.4,3185.0,1.16269822]
[1763354321053,3.71678,3185.4,3185.0,1.16269822]
[1763354321355,0.50898,3185.4,3185.0,1.16269822]
[1763354321549,3.71678,3185.4,3185.0,1.16269822]
[1763354321757,0.50899,3185.3,3185.0,1.16269822]
[1763354321952,0.061,3185.1,3185.0,1.16269822]
[1763354325457,0.50899,3185.3,3185.0,1.16269822]
[1763354325757,3.2078,3185.4,3185.0,1.16269822]
[1763354326052,0.061,3185.1,3185.0,1.16269822]
[1763354326962,4.84628987,3185.4,3185.0,1.16269822]
[1763354327458,4.33729987,3185.4,3185.0,1.16269822]
[1763354327655,4.33729987,3185.4,3185.3,0.2445]
[1763354327959,3.2688,3185.4,3185.3,0.2445]
[1763354330954,0.0616,3185.1,3185.0,1.16749822]
[1763354331762,0.0616,3185.1,3185.0,0.1463]
[1763354332157,0.0616,3185.1,3185.0,0.3956]
[1763354332460,1.19109987,3185.3,3185.2,0.2493]
[1763354334256,0.0616,3185.3,3185.2,0.2493]